[Event "*** Titled Tuesday Blitz"]
[Site "Chess.com"]
[Date "2021.03.30"]
[Round "5"]
[White "dosto07"]
[Black "szachuspl"]
[Result "1-0"]
[WhiteElo "2422"]
[BlackElo "2538"]
[TimeControl "180+1"]
[EndTime "10:54:05 PDT"]
[Termination "dosto07 won by resignation"]

1. e4 {[%clk 0:02:57.9]} 1... c5 {[%clk 0:03:00.1]} 2. Nf3 {[%clk 0:02:56.7]}
2... e6 {[%clk 0:03:00]} 3. c3 {[%clk 0:02:54.4]} 3... Nf6 {[%clk 0:02:59.8]} 4.
e5 {[%clk 0:02:54.4]} 4... Nd5 {[%clk 0:03:00.2]} 5. Bc4 {[%clk 0:02:54.6]} 5...
Nb6 {[%clk 0:02:59.9]} 6. Bb3 {[%clk 0:02:54.6]} 6... Nc6 {[%clk 0:02:57.6]} 7.
d4 {[%clk 0:02:52.8]} 7... cxd4 {[%clk 0:02:56.7]} 8. cxd4 {[%clk 0:02:53.7]}
8... d6 {[%clk 0:02:57.2]} 9. exd6 {[%clk 0:02:52.5]} 9... Bxd6 {[%clk
0:02:57.1]} 10. Nc3 {[%clk 0:02:52.9]} 10... O-O {[%clk 0:02:56.6]} 11. O-O
{[%clk 0:02:53.2]} 11... Ne7 {[%clk 0:02:53.2]} 12. Re1 {[%clk 0:02:50.1]} 12...
Bd7 {[%clk 0:02:53.2]} 13. Ne4 {[%clk 0:02:48.8]} 13... Bc6 {[%clk 0:02:50.7]}
14. Bg5 {[%clk 0:02:36.4]} 14... h6 {[%clk 0:02:44.3]} 15. Bh4 {[%clk 0:02:34]}
15... Bb4 {[%clk 0:02:40.3]} 16. Re2 {[%clk 0:02:23.2]} 16... Bd5 {[%clk
0:02:38.1]} 17. Bc2 {[%clk 0:02:19.4]} 17... Bc4 {[%clk 0:02:33.8]} 18. Bd3
{[%clk 0:02:03.6]} 18... Bxd3 {[%clk 0:02:30.9]} 19. Qxd3 {[%clk 0:02:03.3]}
19... Nbd5 {[%clk 0:02:30.5]} 20. Qb5 {[%clk 0:01:53.8]} 20... b6 {[%clk
0:02:21.4]} 21. Rc1 {[%clk 0:01:44.1]} 21... a6 {[%clk 0:02:17.8]} 22. Qa4
{[%clk 0:01:40.5]} 22... b5 {[%clk 0:02:16.5]} 23. Qb3 {[%clk 0:01:39.2]} 23...
Rc8 {[%clk 0:02:11.1]} 24. Rxc8 {[%clk 0:01:31.3]} 24... Qxc8 {[%clk 0:02:07.5]}
25. Rc2 {[%clk 0:01:31.8]} 25... Qb7 {[%clk 0:01:57.7]} 26. a3 {[%clk
0:01:30.6]} 26... Ba5 {[%clk 0:01:56.8]} 27. Nc5 {[%clk 0:01:29.9]} 27... Qa8
{[%clk 0:01:56.4]} 28. Bxe7 {[%clk 0:01:19.5]} 28... Nxe7 {[%clk 0:01:55.8]} 29.
Nxe6 {[%clk 0:01:15.5]} 29... fxe6 {[%clk 0:01:38.5]} 30. Qxe6+ {[%clk
0:01:14.8]} 30... Rf7 {[%clk 0:01:38.9]} 31. Ne5 {[%clk 0:01:11.2]} 31... Qd5
{[%clk 0:01:38.7]} 32. Rc8+ {[%clk 0:00:55.2]} 32... Kh7 {[%clk 0:01:38.7]} 33.
Qxd5 {[%clk 0:00:53.1]} 33... Nxd5 {[%clk 0:01:33.9]} 34. Nxf7 {[%clk
0:00:52.9]} 34... Bb6 {[%clk 0:01:32.8]} 35. h4 {[%clk 0:00:50.4]} 35... Bxd4
{[%clk 0:01:31.8]} 36. Rd8 {[%clk 0:00:45]} 36... Nf4 {[%clk 0:01:32.1]} 37. g3
{[%clk 0:00:41.2]} 37... Ne6 {[%clk 0:01:23.5]} 38. Rd6 {[%clk 0:00:36.2]} 38...
Kg6 {[%clk 0:01:22.1]} 39. Nd8 {[%clk 0:00:30.7]} 1-0

[Event "*** Titled Tuesday Blitz"]
[Site "Chess.com"]
[Date "2021.03.30"]
[Round "5"]
[White "Nikolaj_6"]
[Black "OparinGrigoriy"]
[Result "0-1"]
[WhiteElo "2649"]
[BlackElo "2981"]
[TimeControl "180+1"]
[EndTime "10:54:06 PDT"]
[Termination "OparinGrigoriy won by resignation"]

1. e4 {[%clk 0:03:00.9]} 1... d6 {[%clk 0:02:52.8]} 2. d4 {[%clk 0:03:00.6]}
2... e5 {[%clk 0:02:52.8]} 3. Nf3 {[%clk 0:02:57.9]} 3... Nd7 {[%clk 0:02:52.3]}
4. Bc4 {[%clk 0:02:57.1]} 4... exd4 {[%clk 0:02:48.6]} 5. Qxd4 {[%clk
0:02:54.9]} 5... Ngf6 {[%clk 0:02:47.3]} 6. Nc3 {[%clk 0:02:28.4]} 6... Nb6
{[%clk 0:02:44.5]} 7. Bb3 {[%clk 0:02:25.5]} 7... Be7 {[%clk 0:02:45]} 8. Bf4
{[%clk 0:02:21.4]} 8... O-O {[%clk 0:02:38.8]} 9. O-O-O {[%clk 0:02:20.9]} 9...
a5 {[%clk 0:02:37.8]} 10. a4 {[%clk 0:02:16.8]} 10... Be6 {[%clk 0:02:33.5]} 11.
Bxe6 {[%clk 0:01:56]} 11... fxe6 {[%clk 0:02:34.4]} 12. e5 {[%clk 0:01:56.2]}
12... Nfd5 {[%clk 0:02:34.6]} 13. Nxd5 {[%clk 0:01:47.6]} 13... Nxd5 {[%clk
0:02:34.4]} 14. Bg3 {[%clk 0:01:45.1]} 14... Qd7 {[%clk 0:02:24.7]} 15. Kb1
{[%clk 0:01:39.9]} 15... c5 {[%clk 0:02:11.5]} 16. Qc4 {[%clk 0:01:34.4]} 16...
Nb6 {[%clk 0:02:09.8]} 17. Qb3 {[%clk 0:01:26]} 17... Ra6 {[%clk 0:02:02.7]} 18.
exd6 {[%clk 0:01:25.8]} 18... Bf6 {[%clk 0:02:03.2]} 19. Be5 {[%clk 0:01:14.3]}
19... Nd5 {[%clk 0:01:45.6]} 20. Qb5 {[%clk 0:01:10.3]} 20... Rd8 {[%clk
0:01:42.8]} 21. c4 {[%clk 0:01:00.5]} 21... Nb4 {[%clk 0:01:38.5]} 22. Bxf6
{[%clk 0:00:58.3]} 22... gxf6 {[%clk 0:01:38.5]} 23. Rhe1 {[%clk 0:00:48.8]}
23... Qxb5 {[%clk 0:01:38.5]} 24. axb5 {[%clk 0:00:46.6]} 24... Raxd6 {[%clk
0:01:39.1]} 25. Rxd6 {[%clk 0:00:46.3]} 25... Rxd6 {[%clk 0:01:40]} 26. b3
{[%clk 0:00:44]} 26... Kf7 {[%clk 0:01:39]} 27. Re2 {[%clk 0:00:39.5]} 27... e5
{[%clk 0:01:24.6]} 28. Nh4 {[%clk 0:00:37.6]} 28... Ke6 {[%clk 0:01:20.9]} 29.
g4 {[%clk 0:00:36.5]} 29... Rd3 {[%clk 0:01:16.2]} 30. Kb2 {[%clk 0:00:35.8]}
30... Rh3 {[%clk 0:01:15.6]} 31. Nf5 {[%clk 0:00:34.3]} 31... Rxh2 {[%clk
0:01:14.9]} 32. Rd2 {[%clk 0:00:28.8]} 32... Rxf2 {[%clk 0:01:15.1]} 33. Rxf2
{[%clk 0:00:23.2]} 33... Nd3+ {[%clk 0:01:15.6]} 34. Kc3 {[%clk 0:00:24.1]}
34... Nxf2 {[%clk 0:01:16.5]} 0-1

[Event "*** Titled Tuesday Blitz"]
[Site "Chess.com"]
[Date "2021.03.30"]
[Round "5"]
[White "Ave_Mariia"]
[Black "KarateBaby"]
[Result "1-0"]
[WhiteElo "2500"]
[BlackElo "2311"]
[TimeControl "180+1"]
[EndTime "10:54:06 PDT"]
[Termination "Ave_Mariia won by resignation"]

1. d4 {[%clk 0:03:00.9]} 1... Nf6 {[%clk 0:02:57]} 2. c4 {[%clk 0:03:01]} 2...
g6 {[%clk 0:02:57.1]} 3. Nc3 {[%clk 0:03:01]} 3... Bg7 {[%clk 0:02:58]} 4. e4
{[%clk 0:03:01]} 4... d6 {[%clk 0:02:57.7]} 5. Be2 {[%clk 0:03:01.2]} 5... O-O
{[%clk 0:02:49.2]} 6. Nf3 {[%clk 0:03:00]} 6... Nbd7 {[%clk 0:02:47.3]} 7. O-O
{[%clk 0:02:57.4]} 7... e5 {[%clk 0:02:40.1]} 8. Re1 {[%clk 0:02:57.3]} 8... Re8
{[%clk 0:02:33.6]} 9. Bf1 {[%clk 0:02:56.9]} 9... a6 {[%clk 0:02:32.9]} 10. Be3
{[%clk 0:02:44]} 10... exd4 {[%clk 0:02:27.3]} 11. Bxd4 {[%clk 0:02:41.3]} 11...
c6 {[%clk 0:02:25.9]} 12. Qc2 {[%clk 0:02:33.1]} 12... Ne5 {[%clk 0:02:22.8]}
13. Nxe5 {[%clk 0:02:23.2]} 13... dxe5 {[%clk 0:02:23.7]} 14. Be3 {[%clk
0:02:23.5]} 14... Nh5 {[%clk 0:02:20.8]} 15. Rad1 {[%clk 0:02:21.9]} 15... Qe7
{[%clk 0:02:20.1]} 16. c5 {[%clk 0:02:11.4]} 16... Be6 {[%clk 0:02:03]} 17. Rd6
{[%clk 0:02:03.7]} 17... f5 {[%clk 0:02:00.1]} 18. Red1 {[%clk 0:01:46.3]} 18...
f4 {[%clk 0:01:57.9]} 19. Bc1 {[%clk 0:01:44.5]} 19... f3 {[%clk 0:01:55.2]} 20.
g3 {[%clk 0:01:39.2]} 20... Rad8 {[%clk 0:01:53]} 21. Na4 {[%clk 0:01:03.8]}
21... Qf7 {[%clk 0:01:39.3]} 22. Qd3 {[%clk 0:00:59]} 22... Rxd6 {[%clk
0:01:37.7]} 23. cxd6 {[%clk 0:00:59.9]} 23... Bxa2 {[%clk 0:01:31.6]} 24. d7
{[%clk 0:00:55.8]} 24... Rd8 {[%clk 0:01:32]} 25. Nc5 {[%clk 0:00:54]} 25... Be6
{[%clk 0:01:26.8]} 26. Bg5 {[%clk 0:00:46.7]} 26... Bf6 {[%clk 0:01:24.5]} 27.
Be3 {[%clk 0:00:41.2]} 27... Be7 {[%clk 0:01:18.1]} 28. Nxe6 {[%clk 0:00:39]}
28... Qxe6 {[%clk 0:01:19]} 29. Bb6 {[%clk 0:00:35.9]} 29... Nf6 {[%clk
0:01:12.8]} 30. Bxd8 {[%clk 0:00:35.6]} 30... Bxd8 {[%clk 0:01:13.7]} 31. Qxf3
{[%clk 0:00:29.8]} 31... Kf7 {[%clk 0:01:13.3]} 32. Qe3 {[%clk 0:00:27.7]} 32...
Ke7 {[%clk 0:01:13.4]} 33. Qc5+ {[%clk 0:00:24.4]} 33... Kf7 {[%clk 0:01:13.4]}
34. Bc4 {[%clk 0:00:22.4]} 1-0

[Event "*** Titled Tuesday Blitz"]
[Site "Chess.com"]
[Date "2021.03.30"]
[Round "5"]
[White "frederiksvane"]
[Black "adriangschnitzer"]
[Result "1-0"]
[WhiteElo "2700"]
[BlackElo "2498"]
[TimeControl "180+1"]
[EndTime "10:54:08 PDT"]
[Termination "frederiksvane won by resignation"]

1. e4 {[%clk 0:03:00.9]} 1... c5 {[%clk 0:02:59.5]} 2. Nc3 {[%clk 0:03:00.8]}
2... Nc6 {[%clk 0:02:59.9]} 3. Nge2 {[%clk 0:03:00.6]} 3... g6 {[%clk
0:02:59.8]} 4. g3 {[%clk 0:02:58.3]} 4... Bg7 {[%clk 0:02:59.5]} 5. Bg2 {[%clk
0:02:58.7]} 5... h5 {[%clk 0:02:59]} 6. h3 {[%clk 0:02:54.8]} 6... d6 {[%clk
0:02:53.4]} 7. d3 {[%clk 0:02:52.2]} 7... Bd7 {[%clk 0:02:52.3]} 8. Be3 {[%clk
0:02:49.6]} 8... e5 {[%clk 0:02:51.8]} 9. Qd2 {[%clk 0:02:42]} 9... Nd4 {[%clk
0:02:51.3]} 10. Nd1 {[%clk 0:02:37.9]} 10... Qc8 {[%clk 0:02:37.8]} 11. c3
{[%clk 0:02:30.4]} 11... Bxh3 {[%clk 0:02:35.2]} 12. Rxh3 {[%clk 0:02:29.8]}
12... Nf3+ {[%clk 0:02:32.5]} 13. Bxf3 {[%clk 0:02:28.8]} 13... Qxh3 {[%clk
0:02:32.3]} 14. d4 {[%clk 0:02:08.6]} 14... Rc8 {[%clk 0:02:16.8]} 15. dxc5
{[%clk 0:02:02.9]} 15... dxc5 {[%clk 0:02:16.4]} 16. Qd5 {[%clk 0:02:02.2]}
16... Ne7 {[%clk 0:02:06.4]} 17. Qxb7 {[%clk 0:01:59.3]} 17... O-O {[%clk
0:02:06.4]} 18. Qxe7 {[%clk 0:01:56.4]} 18... Rfd8 {[%clk 0:01:54.3]} 19. c4
{[%clk 0:01:35.8]} 19... Rd7 {[%clk 0:01:48.7]} 20. Qh4 {[%clk 0:01:35.6]} 20...
Qe6 {[%clk 0:01:48.4]} 21. b3 {[%clk 0:01:15]} 21... Rcd8 {[%clk 0:01:42.4]} 22.
Ndc3 {[%clk 0:01:14.1]} 22... Rd4 {[%clk 0:01:26]} 23. Nd5 {[%clk 0:01:12.7]}
23... Rd7 {[%clk 0:01:15.1]} 24. Kf1 {[%clk 0:01:05.5]} 24... Qa6 {[%clk
0:01:07.9]} 25. Kg2 {[%clk 0:01:02.6]} 25... f5 {[%clk 0:01:02.9]} 26. Nxd4
{[%clk 0:01:00.4]} 26... exd4 {[%clk 0:01:00.5]} 27. Bg5 {[%clk 0:00:55.6]}
27... d3 {[%clk 0:00:56.5]} 28. Rd1 {[%clk 0:00:51.8]} 28... Qxa2 {[%clk
0:00:49.9]} 29. Rxd3 {[%clk 0:00:51.6]} 29... Qc2 {[%clk 0:00:49.2]} 30. Nf6+
{[%clk 0:00:51.6]} 30... Bxf6 {[%clk 0:00:48]} 31. Rxd7 {[%clk 0:00:51.7]} 31...
Bd4 {[%clk 0:00:47.3]} 32. Be3 {[%clk 0:00:52]} 1-0

[Event "*** Titled Tuesday Blitz"]
[Site "Chess.com"]
[Date "2021.03.30"]
[Round "5"]
[White "eduardoperalta"]
[Black "biveklama"]
[Result "1-0"]
[WhiteElo "2501"]
[BlackElo "2309"]
[TimeControl "180+1"]
[EndTime "10:54:08 PDT"]
[Termination "eduardoperalta won by resignation"]

1. d4 {[%clk 0:03:00.9]} 1... d5 {[%clk 0:02:59.7]} 2. c4 {[%clk 0:03:00.2]}
2... c6 {[%clk 0:02:59.7]} 3. Nf3 {[%clk 0:02:59.5]} 3... Nf6 {[%clk 0:02:59.4]}
4. Nc3 {[%clk 0:02:59.6]} 4... dxc4 {[%clk 0:02:59.8]} 5. a4 {[%clk 0:02:55]}
5... Bf5 {[%clk 0:02:59.6]} 6. Nh4 {[%clk 0:02:52.5]} 6... e6 {[%clk 0:02:55.4]}
7. e3 {[%clk 0:02:48.4]} 7... Bb4 {[%clk 0:02:41.8]} 8. Nxf5 {[%clk 0:02:47.4]}
8... exf5 {[%clk 0:02:41.3]} 9. Bxc4 {[%clk 0:02:47.9]} 9... O-O {[%clk
0:02:37.6]} 10. O-O {[%clk 0:02:47.5]} 10... Nbd7 {[%clk 0:02:36.3]} 11. Qc2
{[%clk 0:02:46.6]} 11... g6 {[%clk 0:02:32.9]} 12. Ne2 {[%clk 0:02:43.9]} 12...
Nb6 {[%clk 0:02:30.6]} 13. Bb3 {[%clk 0:02:42.3]} 13... Re8 {[%clk 0:02:26.5]}
14. Ng3 {[%clk 0:02:36.8]} 14... Nbd5 {[%clk 0:02:11.3]} 15. Bc4 {[%clk
0:02:31.8]} 15... a5 {[%clk 0:02:06.2]} 16. b3 {[%clk 0:02:28.4]} 16... h5
{[%clk 0:02:03.4]} 17. Rd1 {[%clk 0:02:25.8]} 17... Rc8 {[%clk 0:02:00.2]} 18.
Bb2 {[%clk 0:02:23.5]} 18... Rc7 {[%clk 0:01:58.3]} 19. Rd3 {[%clk 0:02:20]}
19... Rce7 {[%clk 0:01:55.6]} 20. Rf1 {[%clk 0:02:17.8]} 20... Bd6 {[%clk
0:01:51]} 21. Rdd1 {[%clk 0:02:14.8]} 21... Qb8 {[%clk 0:01:45.6]} 22. Rfe1
{[%clk 0:02:07.7]} 22... f4 {[%clk 0:01:43.2]} 23. Nf1 {[%clk 0:02:03]} 23...
fxe3 {[%clk 0:01:43.1]} 24. fxe3 {[%clk 0:02:02.6]} 24... Nxe3 {[%clk
0:01:43.1]} 25. Qxg6+ {[%clk 0:02:01.6]} 25... Kf8 {[%clk 0:01:38.3]} 26. Qxf6
{[%clk 0:01:53.8]} 26... Kg8 {[%clk 0:01:02.4]} 27. Qg6+ {[%clk 0:01:47.8]}
27... Kf8 {[%clk 0:01:01.9]} 28. Qh6+ {[%clk 0:01:47.3]} 28... Kg8 {[%clk
0:01:01.9]} 29. Nxe3 {[%clk 0:01:39]} 29... Bxh2+ {[%clk 0:01:01.8]} 30. Kh1
{[%clk 0:01:38.3]} 30... Qg3 {[%clk 0:00:58.7]} 31. Qxh5 {[%clk 0:01:19.2]}
31... Qf4 {[%clk 0:00:33.2]} 32. Qxh2 {[%clk 0:01:14.1]} 32... Qg5 {[%clk
0:00:30.6]} 33. Bc1 {[%clk 0:01:08.2]} 1-0

[Event "*** Titled Tuesday Blitz"]
[Site "Chess.com"]
[Date "2021.03.30"]
[Round "5"]
[White "bazar-wokzal"]
[Black "Rital44"]
[Result "0-1"]
[WhiteElo "2565"]
[BlackElo "2443"]
[TimeControl "180+1"]
[EndTime "10:54:09 PDT"]
[Termination "Rital44 won by checkmate"]

1. e4 {[%clk 0:02:26.4]} 1... e5 {[%clk 0:02:58.5]} 2. Bc4 {[%clk 0:02:25.6]}
2... Nf6 {[%clk 0:02:57.4]} 3. d3 {[%clk 0:02:26.1]} 3... Nc6 {[%clk 0:02:56.9]}
4. Nf3 {[%clk 0:02:26.3]} 4... h6 {[%clk 0:02:56.5]} 5. O-O {[%clk 0:02:25.5]}
5... g5 {[%clk 0:02:56.2]} 6. Nc3 {[%clk 0:02:20.2]} 6... g4 {[%clk 0:02:55.5]}
7. Nh4 {[%clk 0:02:17.5]} 7... Nxe4 {[%clk 0:02:46.1]} 8. dxe4 {[%clk 0:02:10]}
8... Qxh4 {[%clk 0:02:44.4]} 9. Nd5 {[%clk 0:02:09.9]} 9... Bd6 {[%clk
0:02:44.1]} 10. f4 {[%clk 0:02:04.5]} 10... b5 {[%clk 0:02:26.5]} 11. Bxb5
{[%clk 0:01:59.7]} 11... Bb7 {[%clk 0:02:26.4]} 12. c3 {[%clk 0:01:48]} 12... g3
{[%clk 0:02:21.8]} 13. h3 {[%clk 0:01:31.5]} 13... Ne7 {[%clk 0:02:21]} 14. fxe5
{[%clk 0:01:26.7]} 14... Bc5+ {[%clk 0:02:04]} 15. Kh1 {[%clk 0:01:24]} 15...
Qxe4 {[%clk 0:02:02.8]} 16. Nf6+ {[%clk 0:01:22.8]} 16... Kf8 {[%clk 0:01:59.8]}
17. Nxe4 {[%clk 0:01:21.8]} 17... Bxe4 {[%clk 0:02:00.7]} 18. Qxd7 {[%clk
0:01:12.7]} 18... c6 {[%clk 0:02:00.6]} 19. Bc4 {[%clk 0:01:11.6]} 19... Rh7
{[%clk 0:01:58.6]} 20. Bxh6+ {[%clk 0:01:07.2]} 20... Kg8 {[%clk 0:01:55.8]} 21.
Rxf7 {[%clk 0:01:02.8]} 21... Rxf7 {[%clk 0:01:49.9]} 22. Rf1 {[%clk 0:00:43.8]}
22... Bf2 {[%clk 0:01:47]} 23. Bg5 {[%clk 0:00:29]} 23... Nd5 {[%clk 0:01:41.2]}
24. Qg4 {[%clk 0:00:26.6]} 24... Bf5 {[%clk 0:01:38.4]} 25. Qh4 {[%clk
0:00:25.5]} 25... Rh7 {[%clk 0:01:35.4]} 26. Bh6 {[%clk 0:00:25]} 26... Rf8
{[%clk 0:01:12.7]} 27. Qg5+ {[%clk 0:00:17.4]} 27... Kh8 {[%clk 0:01:12.4]} 28.
Bxf8 {[%clk 0:00:17.7]} 28... Rxh3+ {[%clk 0:01:11.1]} 29. gxh3 {[%clk
0:00:17.6]} 29... Be4# {[%clk 0:01:11.6]} 0-1

[Event "*** Titled Tuesday Blitz"]
[Site "Chess.com"]
[Date "2021.03.30"]
[Round "5"]
[White "Eloist"]
[Black "Lenyas66"]
[Result "0-1"]
[WhiteElo "2336"]
[BlackElo "2525"]
[TimeControl "180+1"]
[EndTime "10:54:11 PDT"]
[Termination "Lenyas66 won by resignation"]

1. e4 {[%clk 0:02:51.2]} 1... c5 {[%clk 0:02:58.7]} 2. Nf3 {[%clk 0:02:50.3]}
2... Nc6 {[%clk 0:02:58.7]} 3. Bb5 {[%clk 0:02:49.6]} 3... Nd4 {[%clk
0:02:58.4]} 4. Nxd4 {[%clk 0:02:49.1]} 4... cxd4 {[%clk 0:02:58.4]} 5. O-O
{[%clk 0:02:50]} 5... e6 {[%clk 0:02:58]} 6. c3 {[%clk 0:02:50]} 6... Bc5 {[%clk
0:02:55.9]} 7. cxd4 {[%clk 0:02:47.8]} 7... Bxd4 {[%clk 0:02:55.3]} 8. Nc3
{[%clk 0:02:48.1]} 8... Nf6 {[%clk 0:02:52.9]} 9. d3 {[%clk 0:02:47.2]} 9... O-O
{[%clk 0:02:51.1]} 10. Qe2 {[%clk 0:02:46.1]} 10... a6 {[%clk 0:02:43.9]} 11.
Ba4 {[%clk 0:02:45.3]} 11... d5 {[%clk 0:02:42.9]} 12. e5 {[%clk 0:02:31.6]}
12... Nd7 {[%clk 0:02:42]} 13. Bf4 {[%clk 0:02:27.9]} 13... b5 {[%clk
0:02:35.7]} 14. Bb3 {[%clk 0:02:20.6]} 14... Qb6 {[%clk 0:02:34.6]} 15. Rae1
{[%clk 0:02:18.6]} 15... Nc5 {[%clk 0:02:20.4]} 16. Qg4 {[%clk 0:02:01.5]} 16...
Nxd3 {[%clk 0:02:09.7]} 17. Bh6 {[%clk 0:01:59.5]} 17... g6 {[%clk 0:02:07.5]}
18. Bxf8 {[%clk 0:01:55.6]} 18... Bxf2+ {[%clk 0:02:06.9]} 19. Kh1 {[%clk
0:01:49.5]} 19... Bxe1 {[%clk 0:02:06.9]} 20. Be7 {[%clk 0:01:35.1]} 20... Nf2+
{[%clk 0:02:03.3]} 21. Rxf2 {[%clk 0:01:34.5]} 21... Qxf2 {[%clk 0:02:03.1]} 22.
h3 {[%clk 0:01:24.1]} 22... Qf1+ {[%clk 0:01:57.7]} 23. Kh2 {[%clk 0:01:23.6]}
23... Bb7 {[%clk 0:01:38.3]} 24. Bf6 {[%clk 0:01:05.9]} 24... Qf5 {[%clk
0:01:29.2]} 25. Qe2 {[%clk 0:00:59.7]} 25... Qf4+ {[%clk 0:01:17.9]} 26. Kg1
{[%clk 0:00:55.7]} 26... Bg3 {[%clk 0:01:17.2]} 27. Qd1 {[%clk 0:00:16.1]} 27...
Rc8 {[%clk 0:01:15.6]} 28. Ne2 {[%clk 0:00:15.1]} 28... Qe3+ {[%clk 0:01:14.2]}
29. Kh1 {[%clk 0:00:14.6]} 29... Bxe5 {[%clk 0:01:13.8]} 0-1

[Event "*** Titled Tuesday Blitz"]
[Site "Chess.com"]
[Date "2021.03.30"]
[Round "5"]
[White "olksuna"]
[Black "SmallTurtleDuck"]
[Result "1-0"]
[WhiteElo "2674"]
[BlackElo "2344"]
[TimeControl "180+1"]
[EndTime "10:54:12 PDT"]
[Termination "olksuna won by resignation"]

1. e4 {[%clk 0:03:00.9]} 1... c6 {[%clk 0:02:59.9]} 2. Nf3 {[%clk 0:02:59.4]}
2... d5 {[%clk 0:03:00.8]} 3. Nc3 {[%clk 0:02:59.7]} 3... Nf6 {[%clk 0:03:01.3]}
4. e5 {[%clk 0:02:58.7]} 4... Ne4 {[%clk 0:03:01.8]} 5. Ne2 {[%clk 0:02:57.8]}
5... Qb6 {[%clk 0:02:56.8]} 6. d4 {[%clk 0:02:57]} 6... e6 {[%clk 0:02:57.4]} 7.
Ng3 {[%clk 0:02:55.4]} 7... Nxg3 {[%clk 0:02:56.6]} 8. fxg3 {[%clk 0:02:54.8]}
8... c5 {[%clk 0:02:57.5]} 9. Bd3 {[%clk 0:02:54]} 9... cxd4 {[%clk 0:02:51.1]}
10. O-O {[%clk 0:02:51.2]} 10... Nc6 {[%clk 0:02:51.2]} 11. a3 {[%clk
0:02:51.4]} 11... a5 {[%clk 0:02:48.8]} 12. b3 {[%clk 0:02:39.3]} 12... Bc5
{[%clk 0:02:47.5]} 13. Qe2 {[%clk 0:02:33.4]} 13... Bd7 {[%clk 0:02:46.3]} 14.
Ng5 {[%clk 0:02:26.8]} 14... Nd8 {[%clk 0:02:39]} 15. Qh5 {[%clk 0:02:18.6]}
15... g6 {[%clk 0:02:31.4]} 16. Qf3 {[%clk 0:02:14.7]} 16... O-O {[%clk
0:02:05.1]} 17. Nxh7 {[%clk 0:02:03.1]} 17... Kxh7 {[%clk 0:01:41.9]} 18. Qh5+
{[%clk 0:02:02.1]} 18... Kg8 {[%clk 0:01:42.5]} 19. Bxg6 {[%clk 0:01:58.4]}
19... fxg6 {[%clk 0:01:43.4]} 20. Qxg6+ {[%clk 0:01:57.2]} 20... Kh8 {[%clk
0:01:44]} 21. Bg5 {[%clk 0:01:35.5]} 21... d3+ {[%clk 0:01:43.4]} 22. Kh1 {[%clk
0:01:34.2]} 22... Nc6 {[%clk 0:01:02.8]} 23. Qh6+ {[%clk 0:01:19.5]} 23... Kg8
{[%clk 0:01:01.8]} 24. Qg6+ {[%clk 0:01:13]} 24... Kh8 {[%clk 0:01:01.6]} 25.
Bf6+ {[%clk 0:01:06.1]} 25... Rxf6 {[%clk 0:01:01.3]} 26. exf6 {[%clk
0:01:04.8]} 26... Bf8 {[%clk 0:00:53.9]} 27. Rf4 {[%clk 0:00:56.2]} 27... Qd4
{[%clk 0:00:53.8]} 28. Rxd4 {[%clk 0:00:49]} 28... Nxd4 {[%clk 0:00:54.7]} 29.
f7 {[%clk 0:00:40]} 1-0

[Event "*** Titled Tuesday Blitz"]
[Site "Chess.com"]
[Date "2021.03.30"]
[Round "5"]
[White "NoGalloNoParty"]
[Black "theredking89"]
[Result "0-1"]
[WhiteElo "2397"]
[BlackElo "2553"]
[TimeControl "180+1"]
[EndTime "10:54:12 PDT"]
[Termination "theredking89 won by resignation"]

1. d4 {[%clk 0:03:00.9]} 1... Nf6 {[%clk 0:02:54.9]} 2. c4 {[%clk 0:02:59.2]}
2... g6 {[%clk 0:02:54.9]} 3. Nc3 {[%clk 0:02:56.5]} 3... Bg7 {[%clk 0:02:55.1]}
4. e4 {[%clk 0:02:56.5]} 4... O-O {[%clk 0:02:55.8]} 5. Nf3 {[%clk 0:02:57]}
5... d6 {[%clk 0:02:55.5]} 6. Be2 {[%clk 0:02:57.4]} 6... c5 {[%clk 0:02:55.5]}
7. Be3 {[%clk 0:02:57]} 7... cxd4 {[%clk 0:02:55.2]} 8. Nxd4 {[%clk 0:02:56.8]}
8... Nc6 {[%clk 0:02:55.7]} 9. O-O {[%clk 0:02:54.4]} 9... Bd7 {[%clk
0:02:55.7]} 10. f3 {[%clk 0:02:50.5]} 10... Nxd4 {[%clk 0:02:55.7]} 11. Bxd4
{[%clk 0:02:50.3]} 11... a5 {[%clk 0:02:55.9]} 12. Qd2 {[%clk 0:02:38.4]} 12...
Bc6 {[%clk 0:02:56.1]} 13. Rfd1 {[%clk 0:02:33.7]} 13... Nd7 {[%clk 0:02:55.7]}
14. Bxg7 {[%clk 0:02:15.4]} 14... Kxg7 {[%clk 0:02:56.6]} 15. Qd4+ {[%clk
0:02:07]} 15... Kg8 {[%clk 0:02:56.7]} 16. f4 {[%clk 0:02:03.8]} 16... Qb6
{[%clk 0:02:56.2]} 17. Qxb6 {[%clk 0:01:59.9]} 17... Nxb6 {[%clk 0:02:57.1]} 18.
Nd5 {[%clk 0:01:44.9]} 18... Bxd5 {[%clk 0:02:57]} 19. exd5 {[%clk 0:01:26.2]}
19... Rfc8 {[%clk 0:02:56.4]} 20. Rac1 {[%clk 0:01:24.1]} 20... a4 {[%clk
0:02:54.3]} 21. Kf2 {[%clk 0:01:19.5]} 21... Rc5 {[%clk 0:02:49.6]} 22. Ke3
{[%clk 0:01:17.7]} 22... Rac8 {[%clk 0:02:48]} 23. Kd2 {[%clk 0:00:31.5]} 23...
Nxc4+ {[%clk 0:02:44.3]} 24. Bxc4 {[%clk 0:00:30.2]} 24... Rxc4 {[%clk
0:02:45.2]} 25. Rxc4 {[%clk 0:00:25.1]} 25... Rxc4 {[%clk 0:02:46.1]} 26. g3
{[%clk 0:00:24.7]} 26... Rd4+ {[%clk 0:02:19.2]} 27. Ke2 {[%clk 0:00:23.7]}
27... Rxd1 {[%clk 0:02:20.1]} 28. Kxd1 {[%clk 0:00:23.7]} 28... e5 {[%clk
0:02:18.6]} 29. Kd2 {[%clk 0:00:20.2]} 29... e4 {[%clk 0:02:06.3]} 30. Kc1
{[%clk 0:00:18.9]} 30... Kf8 {[%clk 0:02:03]} 31. g4 {[%clk 0:00:17.6]} 31... h5
{[%clk 0:01:57.1]} 32. h3 {[%clk 0:00:12.1]} 32... hxg4 {[%clk 0:01:56.8]} 33.
hxg4 {[%clk 0:00:12]} 33... f5 {[%clk 0:01:56.7]} 34. g5 {[%clk 0:00:10.8]}
34... Ke7 {[%clk 0:01:55.7]} 35. Kd2 {[%clk 0:00:10.4]} 35... Kd7 {[%clk
0:01:55.7]} 36. Kc3 {[%clk 0:00:09.9]} 36... Kc7 {[%clk 0:01:50.7]} 37. b4
{[%clk 0:00:09]} 37... axb3 {[%clk 0:01:49.7]} 38. axb3 {[%clk 0:00:08.6]} 38...
Kb6 {[%clk 0:01:49.7]} 39. Kc4 {[%clk 0:00:06.5]} 39... Ka5 {[%clk 0:01:48.3]}
40. b4+ {[%clk 0:00:05.9]} 40... Ka4 {[%clk 0:01:48.2]} 41. b5 {[%clk
0:00:06.1]} 41... b6 {[%clk 0:01:47.9]} 0-1